bitfinex/quotes_SOLUSD_20250823
["timestamp","ask_amount","ask_price","bid_price","bid_amount"]
[1755924326157,54.528646,205.0,204.95,0.28432314]
[1755924326158,54.528646,205.0,204.95,26.77224702]
[1755924326323,54.528646,205.0,204.99,16.08388295]
[1755924326728,54.528646,205.0,204.94,26.0]
[1755924326927,54.528646,205.0,204.99,16.08388295]
[1755924327164,54.528646,205.0,204.93,0.28432314]
[1755924327329,54.528646,205.0,204.99,42.08388295]
[1755924327532,55.248646,205.0,204.89,0.48806676]
[1755924327730,55.248646,205.0,204.93,16.08388295]
[1755924327731,0.72,204.99,204.93,16.08388295]
[1755924328062,16.08388295,204.97,204.91,16.08388295]
[1755924328249,16.08388295,204.95,204.88,16.08388295]
[1755924328431,0.72,204.94,204.85,16.08388295]
[1755924328635,16.08388295,204.9,204.83,16.08388295]
[1755924328832,16.08388295,204.88,204.87,0.226]
[1755924329164,29.9638001,204.88,204.87,0.226]
[1755924329330,16.08388295,204.72,204.59,0.03]
[1755924329533,16.08388295,204.82,204.71,16.08388295]
[1755924329745,0.63,204.86,204.71,0.66]
[1755924329934,16.08388295,204.83,204.76,16.08388295]
[1755924330134,16.08388295,204.83,204.71,0.66]
[1755924330135,46.9,204.83,204.79,16.08388295]
[1755924330355,46.9,204.83,204.71,1.14849592]
[1755924330356,46.9,204.83,204.76,16.08388295]
[1755924330570,46.9,204.83,204.73,0.66]
[1755924330767,46.9,204.83,204.79,16.08388295]
[1755924330945,46.84,204.85,204.82,16.08388295]
[1755924331151,46.82,204.86,204.82,16.08388295]
[1755924331344,47.45,204.91,204.85,16.08388295]
[1755924331581,46.8,204.9,204.85,16.08388295]
[1755924331743,63.51388295,204.89,204.83,16.08388295]
[1755924331944,16.08388295,204.84,204.74,0.66]
[1755924332145,16.08388295,204.81,204.74,16.08388295]
[1755924332354,46.86,204.82,204.77,16.08388295]
[1755924333050,16.71388295,204.81,204.74,16.08388295]
[1755924333387,46.86,204.82,204.76,16.08388295]
[1755924333551,0.63,204.86,204.8,16.08388295]
[1755924333753,46.82,204.85,204.79,42.08388295]
[1755924334076,46.82,204.85,204.72,1.14847205]
[1755924334077,16.08388295,204.84,204.8,26.0]
[1755924334374,46.82,204.85,204.79,16.08388295]
[1755924334551,46.82,204.85,204.8,16.08388295]
[1755924334977,63.53388295,204.85,204.78,16.08388295]
[1755924335158,63.53388295,204.85,204.78,42.08388295]
[1755924335673,46.82,204.85,204.79,16.08388295]
[1755924335968,16.08388295,204.83,204.74,0.66]
[1755924336171,0.63,204.84,204.7,0.66]
[1755924336376,16.08388295,204.8,204.72,26.0]
[1755924336565,16.08388295,204.77,204.7,16.08388295]
[1755924336773,16.08388295,204.75,204.68,16.08388295]
[1755924337072,46.8,204.78,204.68,0.66]
[1755924337280,46.8,204.78,204.74,16.08388295]
[1755924337481,46.8,204.78,204.68,0.66]
[1755924337684,16.08388295,204.75,204.68,16.08388295]
[1755924338053,0.63,204.77,204.63,0.66]
[1755924338054,16.71388295,204.77,204.7,16.08388295]
[1755924338271,46.8,204.78,204.73,16.08388295]
[1755924338475,16.08388295,204.75,204.66,0.66]
[1755924338676,16.08388295,204.75,204.68,16.08388295]
[1755924338860,0.63,204.77,204.69,16.08388295]
[1755924339082,16.08388295,204.76,204.7,16.08388295]
[1755924339257,0.63,204.77,204.69,16.08388295]
[1755924339258,16.08388295,204.75,204.69,16.08388295]
[1755924339452,16.08388295,204.73,204.67,16.08388295]
[1755924339657,46.7,204.72,204.63,0.66]
[1755924339888,46.7,204.72,204.68,16.08388295]
[1755924340078,46.7,204.72,204.67,26.0]
[1755924340388,16.08388295,204.68,204.62,16.08388295]
[1755924340578,16.08388295,204.67,204.6,16.08388295]
[1755924340930,46.62,204.66,204.64,26.0]
[1755924341395,46.62,204.66,204.61,16.08388295]
[1755924341567,16.08388295,204.62,204.59,0.03]
[1755924341771,16.08388295,204.61,204.59,0.03]
[1755924341996,46.62,204.6,204.59,0.03]
[1755924342285,63.33388295,204.6,204.59,0.03]
[1755924342671,76.92947696,204.6,204.59,0.03]
[1755924342863,76.5838001,204.6,204.59,0.03]
[1755924343059,77.2138001,204.6,204.59,0.03]
[1755924343396,64.26559401,204.55,204.44,0.03]
[1755924343685,0.28432314,204.53,204.44,0.03]
[1755924343875,16.08388295,204.48,204.44,0.03]
[1755924344081,62.72388295,204.47,204.44,0.03]
[1755924344280,35.18,204.55,204.44,0.03]
[1755924344281,10.0,204.64,204.46,16.08388295]
[1755924344584,0.6,204.64,204.55,16.08388295]
[1755924344825,62.76388295,204.63,204.56,16.08388295]
[1755924345124,16.08388295,204.6,204.5,26.0]
[1755924345422,46.68,204.63,204.59,16.08388295]
[1755924345594,46.68,204.63,204.58,16.08388295]
[1755924345796,46.18,204.63,204.58,16.08388295]
[1755924346027,46.18,204.63,204.6,16.08388295]
[1755924347128,46.64,204.67,204.62,16.08388295]
[1755924347291,46.64,204.67,204.66,16.08388295]
[1755924347488,0.6,204.78,204.69,26.0]
[1755924347693,16.08388295,204.77,204.69,26.0]
[1755924347895,46.66,204.76,204.73,16.08388295]
[1755924348117,46.66,204.75,204.74,16.08388295]
[1755924348832,0.66,204.87,204.77,26.0]
[1755924349007,62.70388295,204.86,204.8,16.08388295]
[1755924349348,62.70388295,204.86,204.79,16.08388295]
[1755924349498,62.70388295,204.86,204.8,16.08388295]
[1755924349895,0.06,204.87,204.85,16.08388295]
[1755924350310,16.08388295,204.86,204.75,0.66]
[1755924350522,16.08388295,204.86,204.79,16.08388295]
[1755924350819,16.08388295,204.83,204.76,16.08388295]
[1755924351028,16.08388295,204.78,204.72,16.08388295]
[1755924351198,16.08388295,204.78,204.6,0.48875855]
[1755924351199,16.08388295,204.77,204.71,16.08388295]
[1755924351403,46.76,204.76,204.72,16.08388295]
[1755924351622,16.08388295,204.75,204.68,16.74388295]
[1755924351820,46.76,204.76,204.73,16.08388295]
[1755924351999,16.08388295,204.81,204.75,16.08388295]
[1755924352205,46.82,204.8,204.75,16.08388295]
[1755924352398,46.82,204.8,204.76,16.08388295]
[1755924352635,62.90388295,204.8,204.74,16.08388295]
[1755924352799,62.90388295,204.8,204.72,0.66]
[1755924352800,46.82,204.8,204.77,26.0]
[1755924352999,62.90388295,204.8,204.73,16.08388295]
[1755924353324,16.08388295,204.76,204.67,0.66]
[1755924353537,0.6,204.76,204.62,0.66]
[1755924353714,16.68388295,204.76,204.7,16.08388295]
[1755924354108,13.87991715,204.79,204.58,0.48880633]
[1755924354109,46.82,204.75,204.72,16.08388295]
[1755924354532,46.82,204.75,204.68,26.0]
[1755924354834,16.08388295,204.74,204.67,16.08388295]
[1755924355040,29.67947696,204.73,204.66,16.08388295]
[1755924355739,0.6,204.84,204.72,16.08388295]
[1755924356037,0.6,204.84,204.75,16.08388295]
[1755924356038,60.51559401,204.81,204.75,16.08388295]
[1755924356335,46.9,204.8,204.75,16.08388295]
[1755924356540,46.9,204.8,204.76,16.08388295]
[1755924358104,46.9,204.8,204.77,16.08388295]
[1755924358307,46.9,204.8,204.76,16.08388295]
[1755924358620,46.9,204.8,204.75,16.08388295]
[1755924358819,46.9,204.8,204.69,0.66]
[1755924359005,46.9,204.8,204.45,24.77723071]
[1755924359006,16.08388295,204.76,204.7,16.08388295]
[1755924359325,16.08388295,204.76,204.65,0.68]
[1755924359326,46.7,204.75,204.71,16.08388295]
[1755924360212,46.7,204.75,204.6,0.68]
[1755924360213,29.67947696,204.72,204.6,0.68]
[1755924360537,16.08388295,204.7,204.63,16.08388295]
[1755924360838,62.78388295,204.69,204.62,16.08388295]
[1755924361137,46.7,204.69,204.63,16.08388295]
[1755924361804,47.3,204.69,204.56,0.71]
[1755924362012,46.7,204.69,204.66,16.08388295]
[1755924362309,46.7,204.69,204.57,0.68]
[1755924362525,46.7,204.69,204.67,16.08388295]
[1755924362738,0.6,204.73,204.67,16.08388295]
[1755924363048,13.59559401,204.75,204.63,0.68]
[1755924363049,16.08388295,204.75,204.63,0.68]
[1755924363204,16.08388295,204.71,204.65,16.08388295]
[1755924363441,16.08388295,204.71,204.62,26.0]
[1755924363738,16.08388295,204.63,204.57,16.08388295]
[1755924364038,62.72388295,204.62,204.56,0.03]
[1755924364202,46.64,204.61,204.56,0.03]
[1755924364407,16.08388295,204.58,204.56,0.03]
[1755924364824,77.2038001,204.57,204.46,2.55235686]
[1755924365016,0.28432314,204.5,204.44,0.03]
[1755924365236,1.1355,204.48,204.47,16.08388295]
[1755924365547,47.8555,204.48,204.47,16.08388295]
[1755924365848,1.1355,204.49,204.34,3.04508946]
[1755924366010,1.1355,204.45,204.35,3.29168564]
[1755924366348,1.1355,204.4,204.37,16.08388295]
[1755924366845,1.1355,204.4,204.3,2.55653608]
[1755924367146,1.1355,204.34,204.3,2.55653608]
[1755924367324,1.1355,204.32,204.28,0.68]
[1755924367525,1.1355,204.38,204.29,0.68]
[1755924367844,48.0155,204.38,204.37,16.08388295]
[1755924368044,46.88,204.38,204.36,16.08388295]
[1755924368232,1.1355,204.37,204.35,16.08388295]
[1755924368435,1.1355,204.31,204.26,2.55719386]
[1755924368737,1.1355,204.31,204.15,0.4898359]
[1755924368738,1.07547421,204.28,204.22,0.68]
[1755924368945,1.07547421,204.28,203.99,29.5]
[1755924368946,1.07547421,204.23,204.19,3.26217481]
[1755924369122,1.07547421,204.25,204.2,0.68]
[1755924369309,1.07547421,204.23,204.2,0.68]
[1755924369511,1.07547421,204.25,204.21,0.68]
[1755924369725,1.07547421,204.27,204.19,0.03]
[1755924370043,46.84,204.3,204.19,0.03]
[1755924370044,1.07547421,204.22,204.19,0.03]
[1755924370225,1.07547421,204.2,204.19,0.03]
[1755924370554,31.42495117,204.2,204.19,0.03]
[1755924370720,31.42495117,204.2,203.96,0.49029221]
[1755924370721,1.07547421,204.12,204.06,0.68]
[1755924370916,1.07547421,204.11,204.06,0.68]
[1755924371131,47.06,204.12,204.1,16.08388295]
[1755924371336,47.06,204.12,204.01,0.49017205]
[1755924371541,1.07547421,204.12,204.11,16.08388295]
[1755924371751,47.04,204.15,204.11,16.08388295]
[1755924371925,1.07547421,204.13,204.01,0.03]
[1755924372250,1.07547421,204.13,204.12,16.08388295]
[1755924372415,47.04,204.15,204.14,26.0]
[1755924372616,47.04,204.15,204.12,16.08388295]
[1755924372617,48.11547421,204.15,204.12,16.08388295]
[1755924372822,1.07547421,204.13,204.11,16.08388295]
[1755924373053,1.07547421,204.13,204.1,16.08388295]
[1755924373234,1.07547421,204.1,204.04,0.68]
[1755924373653,1.07547421,204.13,204.04,0.68]
[1755924373956,1.07547421,204.19,204.05,0.49007596]
[1755924374165,1.07547421,204.19,204.06,0.68]
[1755924374166,48.07547421,204.19,204.06,0.68]
[1755924374445,1.07547421,204.15,204.09,26.0]
[1755924374648,1.07547421,204.15,204.14,16.08388295]
[1755924374820,1.07547421,204.18,204.14,16.08388295]
[1755924375013,1.07547421,204.18,204.17,16.08388295]
[1755924375249,1.07547421,204.1,204.04,0.68]
[1755924376253,1.07547421,204.1,204.09,16.08388295]
[1755924376420,1.07547421,204.08,204.04,0.68]
[1755924376750,1.07547421,204.08,204.01,0.71]
[1755924376911,1.04546132,204.06,204.01,0.03]
[1755924377116,1.04546132,204.02,204.01,0.03]
[1755924377344,46.96,204.02,204.01,0.03]
[1755924377737,48.02546132,204.04,204.01,0.03]
[1755924378112,46.98,204.04,204.01,0.03]
[1755924378337,1.04546132,204.03,204.01,0.03]
[1755924378521,1.71546132,204.03,204.01,16.11388295]
[1755924378733,1.71546132,204.03,204.02,16.08388295]
[1755924378940,1.04546132,204.03,204.02,16.08388295]
[1755924379138,46.98,204.04,204.01,0.03]
[1755924379344,1.04546132,204.05,204.03,16.08388295]
[1755924379553,1.04546132,204.08,204.01,0.03]
[1755924379853,47.02,204.06,204.03,26.0]
[1755924380040,48.06546132,204.08,204.03,26.0]
[1755924380228,48.06546132,204.08,204.01,0.03]
[1755924380432,1.04546132,204.02,204.01,0.03]
[1755924380836,15.31105533,204.02,204.01,0.03]
[1755924381554,1.04546132,203.94,203.93,0.03]
[1755924381762,48.04546132,203.94,203.93,0.03]
[1755924381969,48.71546132,203.94,203.93,0.03]
[1755924382131,48.04546132,203.94,203.93,0.03]
[1755924382351,48.04546132,203.94,203.93,16.11388295]
[1755924382555,1.04546132,203.94,203.93,16.11388295]
[1755924382736,1.04546132,204.02,203.96,26.0]
[1755924382938,1.04546132,204.0,203.96,26.0]
[1755924383146,1.04546132,204.0,203.99,16.08388295]
[1755924383737,1.04546132,203.98,203.93,0.03]
[1755924383939,0.67,204.0,203.93,0.03]
[1755924383940,1.04546132,203.96,203.93,0.03]
[1755924384176,1.04546132,204.01,203.98,26.0]
[1755924384374,13.59559401,204.06,203.93,0.03]
[1755924384375,1.04546132,203.94,203.93,0.03]
[1755924385345,47.04,203.94,203.93,0.03]
[1755924385543,47.04,203.94,203.93,26.03]
[1755924386053,48.08546132,203.94,203.93,16.11388295]
[1755924386369,48.75546132,203.94,203.93,0.03]
[1755924386679,48.08546132,203.94,203.93,16.11388295]
[1755924387249,1.04546132,203.94,203.93,16.11388295]
[1755924387464,48.04546132,203.94,203.93,16.11388295]
[1755924387854,48.73546132,203.94,203.93,0.03]
[1755924388258,62.33105533,203.94,203.93,0.03]
[1755924389148,78.69926142,203.94,203.93,0.03]
[1755924390376,114.01926142,203.94,203.93,0.03]
[1755924390545,15.33105533,203.94,203.93,0.03]
[1755924390748,48.67546132,203.94,203.93,0.03]
[1755924391962,47.98546132,203.94,203.93,16.11388295]
[1755924392295,47.98546132,203.94,203.92,16.08388295]
[1755924392465,47.98546132,203.94,203.93,16.08388295]
[1755924392660,47.98546132,203.94,203.92,16.08388295]
[1755924392871,1.04546132,203.92,203.91,16.11388295]
[1755924393461,1.73546132,203.92,203.91,0.03]
[1755924393667,47.84546132,203.92,203.91,16.11388295]
[1755924393889,47.82546132,203.92,203.91,16.11388295]
[1755924394376,1.04546132,203.94,203.91,16.81388295]
[1755924394694,1.04546132,204.02,203.93,16.08388295]
[1755924394858,1.04546132,204.08,204.01,42.08388295]
[1755924395059,0.06,204.21,203.99,0.7]
[1755924395060,1.04546132,204.04,203.99,0.7]
[1755924395281,46.9,204.03,204.0,0.7]
[1755924395595,46.9,204.03,204.01,0.7]
[1755924396199,1.04546132,204.02,204.01,0.7]
[1755924396382,1.04546132,204.02,204.01,16.08388295]
[1755924396688,46.9,204.03,204.01,16.08388295]
[1755924396900,1.04546132,204.02,203.98,0.7]
[1755924397056,1.04546132,204.04,203.99,0.7]
[1755924397264,1.04546132,204.15,204.02,26.0]
[1755924397469,1.04546132,204.17,204.03,1.47444714]
[1755924397807,0.06,204.18,204.06,26.0]
[1755924397964,46.88,204.18,204.17,16.08388295]
[1755924398169,1.10546132,204.21,204.17,16.78388295]
[1755924398469,1.04546132,204.17,204.16,16.08388295]
[1755924398683,46.82,204.17,204.16,16.08388295]
[1755924398887,47.86546132,204.17,204.16,16.08388295]
[1755924399587,1.10546132,204.21,204.18,26.0]
[1755924399790,1.10546132,204.21,204.16,0.7]
[1755924399791,46.76,204.2,204.16,0.7]
[1755924399995,46.76,204.2,204.19,16.08388295]
[1755924400174,46.76,204.2,204.14,26.0]
[1755924400175,1.04546132,204.16,204.14,26.0]
[1755924400372,1.04546132,204.16,204.15,16.08388295]
[1755924400570,1.04546132,204.16,204.06,16.08388295]
[1755924400571,1.04546132,204.16,204.1,0.7]
[1755924400779,1.04546132,204.08,204.04,16.08388295]
[1755924401017,1.04546132,204.02,204.01,16.08388295]
[1755924401189,1.04546132,203.98,203.93,0.7]
[1755924401392,47.90546132,203.98,203.94,0.7]
[1755924401605,46.86,203.98,203.95,0.7]
[1755924401901,1.04546132,204.05,203.96,0.7]
[1755924402066,1.04546132,204.02,203.96,0.7]
[1755924402266,1.04546132,204.07,203.96,0.7]
[1755924402500,35.91,204.15,203.96,0.7]
[1755924402501,1.04546132,204.09,204.08,26.0]
[1755924402677,0.06,204.07,204.01,0.7]
[1755924402876,1.04546132,204.06,204.01,0.7]
[1755924403071,1.04546132,204.06,203.98,0.7]
[1755924403274,1.04546132,204.03,203.98,0.7]
[1755924403491,1.04546132,204.03,203.99,0.7]
[1755924403691,0.06,204.07,204.0,0.7]
[1755924403692,1.04546132,204.06,204.0,0.7]
[1755924403898,1.04546132,204.05,204.04,26.0]
[1755924404098,1.04546132,204.05,204.04,16.08388295]
[1755924404805,1.04546132,204.05,203.9,0.03]
[1755924404976,1.04546132,204.02,203.95,0.7]
[1755924405178,1.04546132,204.0,203.95,0.7]
[1755924405387,1.04546132,204.0,203.96,0.7]
[1755924405690,1.04546132,204.02,203.97,0.7]
[1755924406001,1.04546132,204.0,203.97,0.7]
[1755924406201,1.04546132,204.0,203.99,16.08388295]
[1755924406391,1.04546132,204.01,203.95,0.7]
[1755924406703,14.89815285,204.16,203.95,0.7]
[1755924406704,0.32546132,204.18,204.1,0.28432314]
[1755924406870,0.32546132,204.18,204.06,13.59559401]
[1755924406871,0.06,204.21,204.17,16.08388295]
[1755924407213,0.38546132,204.21,204.2,16.08388295]
[1755924407417,0.06,204.21,204.1,0.7]
[1755924407726,0.38546132,204.21,204.17,26.0]
[1755924407925,0.38546132,204.21,204.2,16.08388295]
[1755924408233,0.06,204.21,204.2,42.08388295]
[1755924408405,0.06,204.23,204.2,16.78388295]
[1755924408720,0.32546132,204.29,204.25,26.0]
[1755924408893,0.32546132,204.29,204.28,16.08388295]
[1755924409295,0.32546132,204.27,204.25,26.0]
[1755924409521,1.01546132,204.29,204.26,16.08388295]
[1755924409727,1.01546132,204.29,204.24,26.0]
[1755924409890,1.01546132,204.29,204.28,16.08388295]
[1755924410092,0.32546132,204.27,204.26,16.08388295]
[1755924410409,0.32546132,204.31,204.29,26.0]
[1755924410608,0.32546132,204.31,204.3,16.08388295]
[1755924411411,0.32546132,204.31,204.27,26.0]
[1755924411412,0.32546132,204.32,204.28,26.0]
[1755924411697,0.32546132,204.3,204.28,26.0]
[1755924411908,0.32546132,204.3,204.29,16.08388295]
[1755924412213,0.32546132,204.3,204.24,0.7]
[1755924412413,0.32546132,204.3,204.29,16.08388295]
[1755924412815,0.32546132,204.32,204.29,16.08388295]
[1755924413014,0.32546132,204.3,204.28,26.0]
[1755924413204,0.38546132,204.3,204.29,16.08388295]
[1755924414006,0.06,204.3,204.29,16.08388295]
[1755924414219,0.38546132,204.3,204.28,26.0]
[1755924414531,0.38546132,204.3,204.29,16.08388295]
[1755924415521,0.32546132,204.28,204.21,0.7]
[1755924415709,0.32546132,204.28,204.27,16.08388295]
[1755924416824,0.32546132,204.28,204.21,0.7]
[1755924417129,0.32546132,204.28,204.27,16.08388295]
[1755924418310,47.91546132,204.28,204.27,16.08388295]
[1755924419211,47.20546132,204.28,204.27,16.08388295]
[1755924419419,0.32546132,204.25,204.2,0.69]
[1755924419617,0.32546132,204.25,204.24,16.08388295]
[1755924420429,0.32546132,204.21,204.15,0.69]
[1755924420614,0.32546132,204.21,204.2,16.08388295]
[1755924421822,0.32546132,204.23,204.2,16.08388295]
[1755924422134,0.32546132,204.23,204.11,0.69]
[1755924422135,0.32546132,204.18,204.11,0.69]
[1755924422337,0.32546132,204.18,204.06,16.08388295]
[1755924422338,47.00546132,204.18,204.17,16.08388295]
[1755924422634,0.32546132,204.13,204.07,0.69]
[1755924422808,0.32546132,204.12,204.08,3.30750971]
[1755924423208,0.32546132,204.09,204.03,0.69]
[1755924423427,0.32546132,204.09,204.04,3.30974032]
[1755924423638,0.32546132,204.09,204.08,16.08388295]
[1755924424137,47.59546132,204.09,204.07,16.08388295]
[1755924424637,0.32546132,204.05,203.98,0.69]
[1755924424927,0.32546132,204.05,204.04,16.08388295]
[1755924425308,0.32546132,204.12,204.07,26.0]
[1755924425531,46.58,204.14,204.11,16.08388295]
[1755924425738,0.32546132,204.17,204.13,42.08388295]
[1755924425934,0.32546132,204.17,204.01,9.67453868]
[1755924425935,0.32546132,204.14,204.07,0.69]
[1755924426105,0.32546132,204.12,204.03,0.69]
[1755924426412,0.32546132,204.12,204.04,3.31119073]
[1755924426613,0.32546132,204.12,204.03,0.69]
[1755924426809,0.32546132,204.12,204.04,3.31084947]
[1755924427119,0.32546132,204.11,204.05,0.69]
[1755924427426,0.32546132,204.11,204.1,16.08388295]
[1755924428518,0.32546132,204.19,204.1,16.77388295]
[1755924428830,0.32546132,204.16,204.1,0.69]
[1755924429023,46.54,204.2,204.15,16.08388295]
[1755924429208,46.54,204.2,204.19,16.08388295]
[1755924429831,0.32546132,204.19,204.1,0.69]
[1755924430030,47.25,204.2,204.06,0.69]
[1755924430031,0.32546132,204.12,204.06,0.69]
[1755924430337,0.32546132,204.12,204.11,16.08388295]
[1755924430720,46.74546132,204.12,204.03,0.69]
[1755924430912,0.32546132,204.1,204.02,0.69]
[1755924431254,0.32546132,204.11,204.09,16.08388295]
[1755924431552,1.03546132,204.11,204.1,16.08388295]
[1755924431912,0.32546132,204.11,204.1,16.08388295]
[1755924432313,46.84546132,204.13,204.1,16.08388295]
[1755924432513,46.84546132,204.13,204.09,26.0]
[1755924432514,47.23,204.13,204.09,26.0]
[1755924432709,47.23,204.13,204.01,0.03]
[1755924432710,0.32546132,204.04,204.01,0.03]
[1755924432928,0.32546132,204.02,204.01,0.03]
[1755924433150,0.32546132,204.0,203.93,0.03]
[1755924433311,0.32546132,203.94,203.93,0.03]
[1755924433514,46.92546132,203.94,203.93,0.03]
[1755924433831,0.32546132,203.97,203.93,4.04498442]
[1755924434141,46.94546132,204.01,203.96,16.08388295]
[1755924434316,46.94546132,204.01,204.0,16.08388295]
[1755924434716,47.65546132,204.01,204.0,16.08388295]
[1755924435112,47.65546132,204.01,203.93,0.03]
[1755924435113,0.32546132,203.99,203.94,0.69]
[1755924435318,0.32546132,203.99,203.98,16.08388295]
[1755924435540,0.32546132,203.96,203.93,0.03]
[1755924435841,0.32546132,203.94,203.93,0.03]
[1755924436661,47.59546132,203.94,203.93,16.11388295]
[1755924436940,61.19105533,203.94,203.93,0.03]
[1755924437145,1.03546132,203.94,203.93,0.03]
[1755924437318,1.03546132,203.94,203.93,16.11388295]
[1755924437523,46.82546132,203.94,203.93,0.03]
[1755924437740,0.32546132,203.92,203.9,0.03]
[1755924437925,13.87991715,203.91,203.9,0.03]
[1755924438114,14.58991715,203.91,203.9,0.03]
[1755924438320,0.71,203.91,203.9,16.11388295]
[1755924438637,61.08775558,203.91,203.9,0.03]
[1755924438945,61.22991715,203.91,203.9,0.03]
[1755924439254,60.94559401,203.91,203.9,0.03]
[1755924439453,13.59559401,203.91,203.9,16.11388295]
[1755924439624,13.59559401,203.91,203.9,0.03]
[1755924439625,60.90559401,203.91,203.9,0.03]
[1755924440642,60.90559401,203.91,203.88,0.03]
[1755924440643,13.92105533,203.89,203.88,0.03]
[1755924440946,60.48105533,203.89,203.88,0.03]
[1755924441138,77.55926142,203.89,203.88,0.03]
[1755924441523,61.19105533,203.89,203.88,0.03]
[1755924442235,77.55926142,203.89,203.88,0.03]
[1755924443245,77.41926142,203.89,203.88,0.03]
[1755924443750,13.87991715,203.88,203.86,0.03]
[1755924443951,14.58991715,203.88,203.87,0.03]
[1755924444133,29.25991715,203.88,203.87,0.03]
[1755924444450,14.58991715,203.88,203.87,0.03]
[1755924445152,61.04991715,203.88,203.87,0.03]
[1755924445337,0.32546132,203.89,203.87,16.11388295]
[1755924445539,59.99559401,203.88,203.87,0.03]
[1755924445742,59.99559401,203.88,203.87,16.11388295]
[1755924446043,46.4,203.88,203.87,16.80388295]
[1755924446253,46.4,203.88,203.87,16.11388295]
[1755924446552,0.32546132,203.95,203.9,26.0]
[1755924446761,0.32546132,203.96,203.93,26.0]
[1755924446970,40.64546132,203.96,203.95,16.08388295]
[1755924447125,40.64546132,203.96,203.93,26.0]
[1755924447328,0.32546132,203.94,203.9,26.66]
[1755924447543,0.32546132,203.97,203.91,0.66]
[1755924447831,0.32546132,203.98,203.91,0.66]
[1755924448043,46.66,203.99,203.92,3.30813598]
[1755924448231,46.66,203.99,203.93,0.66]
[1755924448642,46.66,203.99,203.98,16.08388295]
[1755924448851,0.06,204.01,204.0,26.0]
[1755924449149,0.06,204.04,204.03,16.08388295]
[1755924449342,0.06,204.06,204.05,26.0]
[1755924449537,0.32546132,204.14,204.04,0.66]
[1755924449738,46.68,204.15,204.1,26.0]
[1755924449935,46.68,204.15,204.14,16.08388295]
[1755924450477,46.68,204.18,204.14,16.74388295]
[1755924450646,0.1,204.22,204.2,26.0]
[1755924450958,0.32546132,204.21,204.15,0.66]
[1755924451333,0.32546132,204.21,204.2,16.08388295]
[1755924451754,0.32546132,204.21,204.12,0.66]
[1755924452062,0.32546132,204.18,204.12,0.66]
[1755924452366,0.32546132,204.15,204.12,0.66]
[1755924452941,0.32546132,204.15,204.14,16.08388295]
[1755924453350,0.32546132,204.15,204.09,26.0]
[1755924453540,0.32546132,204.15,204.14,16.08388295]
[1755924454156,0.32546132,204.15,204.08,0.66]
[1755924454157,0.32546132,204.09,204.04,0.66]
[1755924454369,46.78546132,204.09,204.05,0.66]
[1755924454838,0.32546132,204.04,204.0,0.66]
[1755924455240,0.32546132,204.04,204.03,16.08388295]
[1755924455544,13.59559401,204.08,204.03,16.74388295]
[1755924455545,0.32546132,204.08,204.03,16.74388295]
[1755924455749,0.32546132,204.14,204.1,26.0]
[1755924455958,0.32546132,204.13,204.1,26.0]
[1755924456160,0.32546132,204.13,204.03,0.66]
[1755924456161,0.32546132,204.09,204.03,0.66]
[1755924456846,0.32546132,204.07,204.03,0.66]
[1755924457051,13.59559401,204.12,203.95,0.14216157]
[1755924457052,0.32546132,204.12,204.09,26.0]
[1755924457257,46.5,204.13,204.09,26.0]
[1755924457471,46.5,204.13,204.12,16.08388295]
[1755924458577,46.5,204.13,204.12,16.74388295]
[1755924458875,0.32546132,204.18,204.12,16.74388295]
[1755924459054,0.32546132,204.14,204.09,26.0]
[1755924459376,0.32546132,204.14,204.13,16.08388295]
[1755924459869,0.32546132,204.2,204.16,26.0]
[1755924460074,46.44,204.22,204.09,23.66]
[1755924460075,0.32546132,204.18,204.09,23.66]
[1755924460278,0.32546132,204.2,204.1,3.30976974]
[1755924460682,0.1,204.22,204.1,3.79972564]
[1755924460849,0.32546132,204.21,204.11,3.30976974]